fUSD/lending_fUSD_20260308
["ID","MTS","AMOUNT","RATE_DAILY","PERIOD"]
[408003021,1773009032821,-947.13,0.00016264,2]
[408003022,1773009032831,-1680.0,0.00016311,2]
[408003023,1773009032842,-168.0,0.00016325,2]
[408003024,1773009032851,-248.45,0.00016328,2]
[408003025,1773009032861,-296.0,0.00016377,2]
[408003026,1773009032870,-158.0,0.000164,3]
[408003027,1773009032879,-420.0,0.00016415,2]
[408003028,1773009032889,-418.0,0.00016525,2]
[408003029,1773009032899,-158.28,0.000166,2]
[408003030,1773009032909,-947.13,0.00016742,2]
[408003031,1773009032925,-171.87038139,0.000169,2]
[408003032,1773009032934,-503.0,0.00017,2]
[408003033,1773009032944,-502.0,0.00017,2]
[408003034,1773009033229,-254.95,0.00017063,2]
[408003035,1773009033256,-243.99939021,0.00017119,2]
[408003036,1773009033266,-158.0,0.000172,3]
[408003037,1773009033276,-947.13,0.00017221,2]
[408003038,1773009033286,-433.0,0.00017339,2]
[408003039,1773009033295,-418.0,0.00017351,2]
[408003040,1773009033305,-208.64048994,0.00017564,2]
[408003041,1773009033315,-299.45198796,0.00017614,2]
[408003042,1773009033325,-2000.0,0.00017682,2]
[408003043,1773009033334,-947.13,0.00017699,2]
[408003044,1773009033344,-166.66,0.00017714,2]
[408003045,1773009033354,-238.49505689,0.00017848,2]
[408003046,1773009033364,-1435.41,0.00017914,2]
[408003047,1773009033374,-150.0,0.00017924,2]
[408003048,1773009033386,-2351.0,0.00017942,2]
[408003049,1773009033395,-478.0,0.00017965,2]
[408003050,1773009033404,-158.0,0.00018,3]
[408003051,1773009033413,-1018.06690806,0.00018058,2]
[408003052,1773009033423,-500.0,0.00018082,2]
[408003053,1773009033432,-500.0,0.00018082,2]
[408003054,1773009033440,-500.0,0.00018082,2]
[408003055,1773009033450,-500.0,0.00018082,2]
[408003056,1773009033460,-1500.0,0.00018082,7]
[408003057,1773009033471,-600.0,0.00018082,7]
[408003058,1773009033482,-166.66,0.00018087,2]
[408003059,1773009033492,-418.0,0.00018177,2]
[408003060,1773009033501,-947.13,0.00018177,2]
[408003061,1773009033510,-1588.44,0.00018215,2]
[408003062,1773009033521,-1300.0,0.00018356,7]
[408003063,1773009033533,-503.0,0.00018432,3]
[408003064,1773009033543,-13072.96,0.00018441,2]
[408003065,1773009033552,-166.66,0.0001846,2]
[408003066,1773009033562,-1821.84,0.00018533,2]
[408003067,1773009033571,-380.0,0.00018629,2]
[408003068,1773009033582,-1588.44,0.00018671,2]
[408003069,1773009033591,-1262.48,0.00018733,2]
[408003070,1773009033601,-160.53,0.00018759,2]
[408003071,1773009033612,-158.0,0.000188,3]
[408003072,1773009033622,-1033.74726434,0.00018811,2]
[408003073,1773009033631,-645.29,0.00018812,2]
[408003074,1773009033640,-166.66,0.00018833,2]
[408003075,1773009033650,-500.0,0.00018873,2]
[408003076,1773009033659,-494.64624274,0.00018873,2]
[408003077,1773009033669,-500.0,0.00018873,2]
[408003078,1773009033678,-500.0,0.00018873,2]
[408003079,1773009033687,-500.0,0.00018873,2]
[408003080,1773009033696,-21133.33750364,0.00018878,2]
[408003081,1773009033709,-16733.0905969,0.00018878,2]
[408003082,1773009033721,-3550.47488554,0.00018878,2]
[408003093,1773009038211,-150.00000001,0.00016325,2]
[408003095,1773009038220,-117.44959683,0.00018878,2]
[408003096,1773009038270,-4578.07971478,0.00018878,2]
[408003097,1773009038330,-1316.5,0.00018878,2]
[408003103,1773009040683,-1017.61687092,0.00018878,2]
[408003104,1773009040695,-42642.63133139,0.00018878,2]
[408003105,1773009040704,-449.82,0.00018911,2]
[408003106,1773009040714,-1033.74726428,0.00018932,2]
[408003107,1773009040728,-1000.0,0.00018978,2]
[408003108,1773009040738,-32923.6528,0.00018978,2]
[408003109,1773009040747,-418.0,0.00019004,2]
[408003110,1773009040757,-350.0,0.00019015,3]
[408003111,1773009040766,-1033.74726428,0.00019053,2]
[408003112,1773009040777,-1588.44,0.00019126,2]
[408003113,1773009040786,-153.2706755,0.00019131,2]
[408003114,1773009040796,-1033.74726428,0.00019174,2]
[408003115,1773009040805,-1500.0,0.00019178,7]
[408003116,1773009040815,-600.0,0.00019178,7]
[408003117,1773009040824,-517.21,0.00019178,30]
[408003118,1773009040833,-2000.0,0.000192,2]
[408003119,1773009040843,-158.28,0.000192,2]
[408003120,1773009040853,-166.66,0.00019206,2]
[408003121,1773009040863,-1033.74726428,0.00019295,2]
[408003122,1773009040872,-500.0,0.00019296,2]
[408003123,1773009040882,-499.92362241,0.00019296,2]
[408003124,1773009040892,-1613.71317749,0.00019299,2]
[408003125,1773009040902,-619.0,0.0001938,2]
[408003126,1773009040911,-1342.0,0.0001938,2]
[408003127,1773009040921,-5992.0,0.0001938,2]
[408003128,1773009040930,-559.0,0.00019416,2]
[408003129,1773009040940,-1033.74726428,0.00019416,2]
[408003130,1773009040949,-1000.0,0.00019421,2]
[408003131,1773009040959,-1000.0,0.00019421,2]
[408003132,1773009040968,-1000.0,0.00019421,2]
[408003133,1773009040978,-556.1229892,0.00019421,2]
[408003135,1773009040987,-1300.0,0.00019452,7]
[408003136,1773009040997,-1000.0,0.00019452,2]
[408003137,1773009041009,-268.95219625,0.00019473,2]
[408003138,1773009041018,-1286.0,0.00019512,2]
[408003139,1773009041028,-1286.0,0.00019521,2]
[408003140,1773009041038,-1033.74726428,0.00019537,2]
[408003141,1773009041049,-166.66,0.00019579,2]
[408003142,1773009041058,-1588.44,0.00019581,2]
[408003143,1773009041068,-500.0,0.00019599,2]
[408003144,1773009041079,-500.0,0.00019599,2]
[408003145,1773009041092,-500.0,0.00019599,2]
[408003146,1773009041102,-500.0,0.00019599,2]
[408003147,1773009041112,-500.0,0.00019599,2]
[408003148,1773009041122,-557.12718383,0.00019599,2]
[408003149,1773009041131,-500.0,0.00019599,2]
[408003150,1773009041141,-902.43671969,0.000196,2]
[408003151,1773009041151,-158.0,0.000196,3]
[408003152,1773009041160,-214.0,0.00019601,2]
[408003153,1773009041170,-150.0,0.00019601,2]
[408003154,1773009041180,-200.0,0.00019601,2]
[408003155,1773009041200,-150.0,0.00019601,2]
[408003157,1773009041221,-150.0,0.00019601,2]
[408003159,1773009041239,-500.0,0.00019601,2]
[408003160,1773009041259,-500.0,0.00019601,2]
[408003161,1773009041281,-150.0,0.00019601,2]
[408003162,1773009041298,-150.0,0.00019601,2]
[408003163,1773009041319,-150.0,0.00019601,2]
[408003164,1773009041339,-150.0,0.00019601,2]
[408003165,1773009041359,-500.0,0.00019601,2]
[408003166,1773009041378,-500.0,0.00019601,2]
[408003167,1773009041403,-150.0,0.00019601,2]
[408003168,1773009041424,-208.62446348,0.00019601,2]
[408003169,1773009041441,-150.0,0.00019601,2]
[408003170,1773009041461,-500.0,0.00019601,2]
[408003171,1773009041474,-290.0,0.00019656,2]
[408003172,1773009041496,-150.0,0.00019656,2]
[408003173,1773009041509,-500.0,0.00019656,2]
[408003174,1773009041552,-212.0,0.00019656,2]
[408003175,1773009041573,-500.0,0.00019656,2]
[408003176,1773009041593,-150.0,0.00019656,2]
[408003177,1773009041618,-150.0,0.00019656,2]
[408003178,1773009041638,-150.0,0.00019656,2]
[408003179,1773009041657,-500.0,0.00019656,2]
[408003180,1773009041675,-500.0,0.00019656,2]
[408003181,1773009041693,-150.0,0.00019656,2]
[408003182,1773009041711,-500.0,0.00019656,2]
[408003183,1773009041730,-172.82949155,0.00019657,2]
[408003184,1773009041747,-1033.74726428,0.00019658,2]
[408003185,1773009041763,-268.95219625,0.00019665,2]
[408003186,1773009041782,-2848.5769,0.00019681,2]
[408003187,1773009041800,-962.77528813,0.000197,2]
[408003188,1773009041817,-350.0,0.00019706,2]
[408003189,1773009041837,-2500.0,0.00019706,2]
[408003190,1773009041852,-2721.95742944,0.00019709,2]
[408003191,1773009041868,-250.0,0.00019711,2]
[408003192,1773009041883,-500.0,0.00019711,2]
[408003193,1773009041898,-500.0,0.00019711,2]
[408003194,1773009041913,-150.0,0.00019711,2]
[408003195,1773009041928,-150.0,0.00019711,2]
[408003196,1773009041943,-150.0,0.00019711,2]
[408003197,1773009041957,-200.0,0.00019711,2]
[408003198,1773009041972,-500.0,0.00019711,2]
[408003199,1773009041987,-246.24370704,0.00019711,2]
[408003200,1773009042004,-500.0,0.00019711,2]
[408003201,1773009042018,-411.09715839,0.00019711,2]
[408003202,1773009042033,-1000.0,0.00019726,2]
[408003203,1773009042049,-2721.95742938,0.0001973,2]
[408003204,1773009042064,-3292.0,0.00019736,2]
[408003205,1773009042079,-2721.95742938,0.00019751,2]
[408003206,1773009042094,-500.0,0.00019765,2]
[408003207,1773009042108,-500.0,0.00019765,2]
[408003208,1773009042123,-150.0,0.00019765,2]
[408003209,1773009042150,-150.0,0.00019765,2]
[408003210,1773009042172,-500.0,0.00019765,2]
[408003211,1773009042193,-500.0,0.00019765,2]
[408003212,1773009042215,-2721.95742938,0.00019773,2]
[408003213,1773009042235,-1286.0,0.00019775,2]
[408003214,1773009042254,-1033.74726428,0.00019779,2]
[408003215,1773009042273,-160.53,0.00019792,2]
[408003216,1773009042289,-151.0,0.00019793,2]
[408003217,1773009042306,-2721.95742938,0.00019794,2]
[408003218,1773009042321,-216.28694899,0.00019799,2]
[408003219,1773009042337,-84824.1126,0.00019806,2]
[408003220,1773009042353,-2721.95742938,0.00019815,2]
[408003221,1773009042371,-500.0,0.0001982,2]
[408003222,1773009042386,-231.1610732,0.0001982,2]
[408003223,1773009042401,-214.52367001,0.0001982,2]
[408003224,1773009042417,-250.0,0.0001982,2]
[408003225,1773009042432,-500.0,0.0001982,2]
[408003226,1773009042447,-500.0,0.0001982,2]
[408003227,1773009042470,-418.0,0.0001983,2]
[408003228,1773009042491,-2721.95742938,0.00019836,2]
[408003229,1773009042511,-402.0,0.00019839,2]
[408003230,1773009042529,-1000.0,0.0001984,2]
[408003231,1773009042548,-1000.0,0.0001984,2]
[408003232,1773009042566,-1000.0,0.0001984,2]
[408003233,1773009042585,-1000.0,0.0001984,2]
[408003234,1773009042602,-1000.0,0.0001984,2]
[408003235,1773009042619,-1000.0,0.0001984,2]
[408003236,1773009042644,-1000.0,0.0001984,2]
[408003237,1773009042664,-1000.0,0.0001984,2]
[408003238,1773009042685,-1000.0,0.0001984,2]
[408003239,1773009042702,-200.0,0.0001984,2]
[408003240,1773009042722,-168.0,0.00019843,2]
[408003241,1773009042740,-3837.766,0.00019844,2]
[408003242,1773009042759,-154.781,0.00019844,2]
[408003243,1773009042776,-1286.0,0.00019857,2]
[408003244,1773009042793,-2721.95742938,0.00019858,2]
[408003245,1773009042816,-268.95219625,0.00019858,2]
[408003246,1773009042837,-503.0,0.00019864,4]
[408003247,1773009042855,-150.0,0.00019872,2]
[408003248,1773009042874,-25000.0,0.00019874,3]
[408003249,1773009042892,-150.0,0.00019874,2]
[408003250,1773009042910,-500.0,0.00019875,2]
[408003251,1773009042928,-500.0,0.00019875,2]
[408003252,1773009042945,-2721.95742938,0.00019879,2]
[408003253,1773009042961,-25000.0,0.00019882,3]
[408003254,1773009042981,-25000.0,0.00019891,3]
[408003255,1773009043001,-25000.0,0.00019891,3]
[408003256,1773009043018,-151.0,0.00019896,2]
[408003257,1773009043036,-150.0,0.00019897,2]
[408003258,1773009043054,-150.0,0.000199,2]
[408003259,1773009043070,-16957.55121506,0.000199,3]
[408003260,1773009043085,-2000.0,0.000199,2]
[408003263,1773009043101,-5000.0,0.000199,2]
[408003265,1773009043118,-25000.0,0.000199,3]
[408003267,1773009043134,-10000.0,0.000199,2]
[408003268,1773009043154,-1079.6828115,0.000199,2]
[408003269,1773009043169,-500.0,0.000199,2]
[408003270,1773009043185,-351.35782912,0.000199,2]
[408003273,1773009043214,-148.64217088,0.000199,2]
[408003274,1773009043230,-331.18055175,0.000199,2]
[408003275,1773009043246,-832.91727737,0.000199,2]
[408003277,1773009043277,-597.43061312,0.000199,2]
[408003278,1773009043295,-1386.70499995,0.000199,2]
[408003279,1773009043321,-1114.7804078,0.000199,2]
[408003282,1773009043934,-322.28723995,0.00019443,2]
[408003283,1773009043943,-73.82276005,0.00019581,2]
[408003284,1773009043958,-3038.3,0.00019581,2]
[408003285,1773009043968,-719.32456132,0.00019581,2]
[408003286,1773009043993,-535.55267863,0.00019581,2]
[408003287,1773009044006,-2500.0,0.00019706,2]
[408003288,1773009044016,-1606.49603137,0.000199,2]
[408003295,1773009046370,-261.67067039,0.000199,2]
[408003296,1773009046380,-128.6812196,0.000199,2]
[408003297,1773009046398,-500.0,0.000199,2]
[408003298,1773009046409,-1371.3187804,0.000199,2]
[408003299,1773009046419,-25000.0,0.000199,3]
[408003300,1773009046429,-2000.0,0.000199,2]
[408003301,1773009046438,-4039.68915363,0.000199,2]
[408003302,1773009046448,-2000.0,0.000199,2]
[408003303,1773009046457,-951.53037599,0.000199,2]
[408003304,1773009046467,-1033.74726428,0.000199,2]
[408003305,1773009046476,-2721.95742938,0.000199,2]
[408003306,1773009046485,-350.0,0.00019921,2]
[408003307,1773009046495,-500.0,0.0001993,2]
[408003308,1773009046504,-500.0,0.0001993,2]
[408003309,1773009046514,-168.0,0.00019944,2]
[408003310,1773009046525,-163.0,0.00019946,2]
[408003311,1773009046535,-250.0,0.00019949,2]
[408003312,1773009046545,-176.0,0.00019954,2]
[408003313,1773009046555,-1000.0,0.00019965,2]
[408003314,1773009046566,-1000.0,0.00019965,2]
[408003315,1773009046576,-357.42,0.00019965,2]
[408003316,1773009046586,-1500.0,0.00019968,2]
[408003318,1773009046595,-1588.87470879,0.00019968,2]
[408003321,1773009046608,-1500.0,0.00019968,2]
[408003323,1773009046617,-500.0,0.0001997,2]
[408003325,1773009046627,-700.0,0.0001997,2]
[408003327,1773009046636,-500.0,0.0001997,2]
[408003328,1773009046646,-700.0,0.0001997,2]
[408003329,1773009046656,-700.0,0.0001997,2]
[408003330,1773009046666,-500.0,0.0001997,2]
[408003331,1773009046678,-500.0,0.0001997,2]
[408003332,1773009046688,-700.0,0.0001997,2]
[408003333,1773009046698,-500.0,0.0001997,2]
[408003334,1773009046710,-700.0,0.0001997,2]
[408003335,1773009046719,-700.0,0.0001997,2]
[408003336,1773009046728,-700.0,0.0001997,2]
[408003337,1773009046738,-700.0,0.0001997,2]
[408003338,1773009046748,-700.0,0.0001997,2]
[408003339,1773009046758,-982.047401,0.0001997,2]
[408003340,1773009046768,-150.0,0.00019971,2]
[408003341,1773009046780,-150.0,0.00019971,2]
[408003342,1773009047084,-364.8560091,0.00019972,2]
[408003343,1773009047098,-610.05,0.00019972,2]
[408003344,1773009047108,-6110.0,0.00019973,2]
[408003345,1773009047118,-500.0,0.00019973,2]
[408003346,1773009047127,-500.0,0.00019973,2]
[408003347,1773009047136,-500.0,0.00019973,2]
[408003348,1773009047146,-500.0,0.00019973,2]
[408003349,1773009047155,-500.0,0.00019973,2]
[408003350,1773009047165,-150.0,0.00019973,2]
[408003351,1773009047174,-570.0,0.00019973,2]
[408003352,1773009047183,-610.05,0.00019973,2]
[408003353,1773009047192,-150.0,0.0001998,2]
[408003354,1773009047202,-1279.0,0.0001998,2]
[408003355,1773009047211,-1213.0,0.0001998,2]
[408003356,1773009047221,-922.0,0.0001998,2]
[408003357,1773009047231,-500.0,0.00019985,2]
[408003358,1773009047240,-338.0,0.00019985,2]
[408003359,1773009047250,-250.0,0.00019986,2]
[408003360,1773009047259,-224.50988173,0.0001999,2]
[408003361,1773009047268,-150.0,0.00019992,2]
[408003362,1773009047278,-610.05,0.00019997,2]
[408003363,1773009047291,-151.0,0.00019997,2]
[408003364,1773009047300,-151.0,0.00019997,2]
[408003365,1773009047309,-300.0,0.00019999,2]
[408003366,1773009047319,-310.89756555,0.00019999,2]
[408003367,1773009047328,-607.78152683,0.00019999,2]
[408003368,1773009047338,-600.20915157,0.00019999,2]
[408003369,1773009047348,-500.0,0.00019999,2]
[408003370,1773009047358,-500.0,0.00019999,2]
[408003371,1773009047367,-500.0,0.00019999,2]
[408003372,1773009047377,-362.35833935,0.00019999,2]
[408003373,1773009047386,-500.0,0.00019999,2]
[408003374,1773009047396,-500.0,0.00019999,2]
[408003375,1773009047407,-282.39624482,0.00019999,2]
[408003376,1773009047416,-4639.0,0.0002,2]
[408003377,1773009047426,-610.05,0.0002,2]
[408003378,1773009047435,-3982.58380329,0.0002,2]
[408003379,1773009047459,-5172.28490029,0.0002,2]
[408003380,1773009047470,-19756.9,0.0002,2]
[408003381,1773009048112,-4759.4955297,0.0002,2]
[408003388,1773009136947,500.0,9e-05,2]
[408003389,1773009137699,154.83873266,9e-05,2]
[408003390,1773009137722,345.16126734,9e-05,2]
[408003391,1773009138167,500.0,9e-05,2]
[408003392,1773009138234,576.36919382,9e-05,2]
[408003393,1773009138632,500.0,9e-05,2]
[408003394,1773009139122,969.69450366,9e-05,2]
[408003395,1773009142148,500.0,9e-05,2]
[408003396,1773009142657,500.0,9e-05,2]
[408003397,1773009143124,500.0,9e-05,2]
[408003398,1773009143596,500.0,9e-05,2]
[408003399,1773009144044,600.0,9e-05,2]
[408003400,1773009145982,500.0,9e-05,2]
[408003401,1773009146463,500.0,9e-05,2]
[408003402,1773009146938,962.56919857,9e-05,2]
[408003403,1773009147270,514.80318033,9e-05,2]
[408003404,1773009147897,883.00395971,9e-05,2]
[408003405,1773009148896,500.0,9e-05,2]
[408003406,1773009148923,500.0,9e-05,2]
[408003407,1773009149401,148.40869657,9e-05,2]
[408003408,1773009149425,351.59130343,9e-05,2]
[408003409,1773009149452,500.0,9e-05,2]
[408003410,1773009149883,500.0,9e-05,2]
[408003411,1773009149918,500.0,9e-05,2]
[408003412,1773009150425,500.0,9e-05,2]
[408003413,1773009151152,899.63697651,9e-05,2]
[408003414,1773009152938,500.0,9e-05,2]
[408003415,1773009153417,709.3557087,9e-05,2]
[408003416,1773009185373,158.0,0.00014,2]
[408003417,1773009185609,158.0,0.00014,2]
[408003418,1773009248014,159.0,0.00014,2]
[408003419,1773009305953,159.0,0.00014,2]
[408003420,1773009307438,160.0,0.00014,2]
[408003422,1773009318560,2487.24,0.00014,2]
[408003423,1773009450563,500.0,8e-05,2]
[408003425,1773009796527,-201.0,0.00014527,2]
[408003426,1773010012911,-1622.65184116,0.00014221,2]
[408003427,1773010012941,-634.623854,0.00014249,2]
[408003428,1773010012971,-500.0,0.00014285,2]
[408003429,1773010013000,-600.0,0.00014285,2]
[408003430,1773010013032,-164.433249,0.00014321,7]
[408003431,1773010013061,-155.5,0.00014322,2]
[408003432,1773010013089,-221.47337308,0.00014595,2]
[408003433,1773010013118,-494.63536552,0.00014695,2]
[408003434,1773010013131,-1213.36463448,0.00014695,2]
[408003435,1773010013140,-272.0,0.00014725,2]
[408003436,1773010013149,-137.28720668,0.00014785,2]
[408003437,1773010013186,-634.623854,0.00014785,2]
[408003438,1773010013197,-500.0,0.00014785,2]
[408003439,1773010013212,-375.20308928,0.00014785,2]
[408003440,1773010013224,-224.79691072,0.00014996,2]
[408003441,1773010013239,-164.433249,0.00014996,2]
[408003442,1773010013251,-155.5,0.00014996,2]
[408003443,1773010013264,-221.47337308,0.00014996,2]
[408003444,1773010013279,-433.7964672,0.00014996,2]
[408003445,1773010013288,-300.0,0.00014996,2]
[408003446,1773010013297,-300.0,0.00014996,2]
[408003447,1773010013307,-674.2035328,0.00014997,2]
[408003454,1773010231364,-150.0,0.00014999,2]
[408003455,1773010231374,-431.0,0.00014999,2]
[408003456,1773010231383,-246.08473548,0.00014999,2]
[408003457,1773010231396,-53.91526452,0.00014999,2]
[408003458,1773010231405,-1200.0,0.00014999,2]
[408003459,1773010231416,-300.0,0.00014999,2]
[408003460,1773010231425,-274.0,0.00014999,2]
[408003461,1773010231435,-250.0,0.00015,2]
[408003462,1773010231445,-227.21,0.00015,2]
[408003463,1773010231454,-500.0,0.00015,30]
[408003464,1773010231463,-500.0,0.00015,30]
[408003465,1773010231473,-500.0,0.00015,30]
[408003466,1773010231482,-500.0,0.00015,30]
[408003467,1773010231491,-500.0,0.00015,30]
[408003468,1773010231500,-927.92732542,0.00015,30]
[408003469,1773010231510,-500.0,0.00015,30]
[408003470,1773010231519,-501.15119853,0.00015,30]
[408003471,1773010231532,-500.0,0.00015,30]
[408003472,1773010231542,-500.0,0.00015,30]
[408003473,1773010231551,-500.0,0.00015,30]
[408003474,1773010231561,-500.0,0.00015,30]
[408003476,1773010231571,-500.0,0.00015,30]
[408003477,1773010231581,-500.0,0.00015,30]
[408003478,1773010231590,-500.0,0.00015,30]
[408003479,1773010231599,-500.0,0.00015,30]
[408003480,1773010231608,-500.0,0.00015,30]
[408003481,1773010231618,-500.0,0.00015,30]
[408003484,1773010231628,-500.0,0.00015,30]
[408003487,1773010231638,-500.0,0.00015,30]
[408003489,1773010231647,-423.30693803,0.00015,30]
[408003491,1773010231660,-76.69306197,0.00015,30]
[408003494,1773010231670,-500.0,0.00015,30]
[408003497,1773010231679,-500.0,0.00015,30]
[408003500,1773010231689,-228.30693803,0.00015,30]
[408003504,1773010231701,-271.69306197,0.00015,30]
[408003507,1773010231711,-363.76285304,0.00015,30]
[408003511,1773010231724,-136.23714696,0.00015,30]
[408003514,1773010231734,-500.0,0.00015,30]
[408003517,1773010231743,-500.0,0.00015,30]
[408003520,1773010231752,-500.0,0.00015,30]
[408003523,1773010231763,-64.00068902,0.00015,30]
[408003525,1773010231775,-435.99931098,0.00015,30]
[408003526,1773010231784,-420.52399719,0.00015,30]
[408003527,1773010231795,-79.47600281,0.00015,30]
[408003528,1773010231804,-500.0,0.00015,30]
[408003529,1773010231814,-383.9239972,0.00015,30]
[408003530,1773010231825,-116.0760028,0.00015,30]
[408003531,1773010231835,-500.0,0.00015,30]
[408003532,1773010231844,-52.3239922,0.00015,30]
[408003533,1773010231866,-447.6760078,0.00015,30]
[408003534,1773010231876,-606.04,0.00015,30]
[408003535,1773010231885,-500.0,0.00015,30]
[408003536,1773010231894,-500.0,0.00015,30]
[408003537,1773010231903,-500.0,0.00015,30]
[408003538,1773010231912,-150.0,0.00015257,7]
[408003539,1773010231922,-227.21,0.00015274,2]
[408003540,1773010231931,-168.3299599,0.000155,2]
[408003541,1773010231940,-227.21,0.00015548,2]
[408003542,1773010231949,-2625.66638038,0.00015674,2]
[408003543,1773010231961,-2374.33361962,0.00015674,2]
[408003544,1773010231971,-300.0,0.00015674,2]
[408003545,1773010231980,-40.44813156,0.00015674,2]
[408003546,1773010231992,-259.55186844,0.00015674,2]
[408003547,1773010232003,-203.76174136,0.00015674,2]
[408003548,1773010232016,-237.04789364,0.00015674,2]
[408003549,1773010232028,-62.95210636,0.00015674,2]
[408003550,1773010232359,-500.0,0.00015674,2]
[408003551,1773010232472,-600.0,0.00015674,2]
[408003552,1773010232482,-146.7355373,0.00016208,2]
[408003553,1773010232493,-74.73783578,0.00016208,2]
[408003554,1773010232503,-192.63951616,0.00016326,2]
[408003555,1773010232514,-864.06206667,0.00016326,2]
[408003556,1773010232525,-424.84285358,0.00016326,2]
[408003557,1773010232571,-1758.45556359,0.00016326,2]
[408003558,1773010232581,-420.0,0.00016416,2]
[408003559,1773010232591,-892.86053309,0.00016496,2]
[408003560,1773010232601,-160.79,0.00016496,2]
[408003561,1773010232611,-697.46407019,0.00016497,2]
[408003562,1773010232621,-1715.41850069,0.00016497,2]
[408003563,1773010232634,-784.58149931,0.00016497,2]
[408003564,1773010232643,-2500.0,0.00016497,2]
[408003565,1773010232652,-2500.0,0.00016497,2]
[408003566,1773010232662,-2500.0,0.00016497,2]
[408003567,1773010232671,-2500.0,0.00016497,2]
[408003568,1773010232681,-178.93204733,0.00016497,2]
[408003569,1773010232690,-195.0,0.00016497,2]
[408003570,1773010232700,-195.0,0.00016497,2]
[408003571,1773010232710,-195.0,0.00016497,2]
[408003572,1773010232719,-195.0,0.00016497,2]
[408003573,1773010232729,-195.0,0.00016497,2]
[408003574,1773010232739,-3033.7947092,0.00016497,2]
[408003575,1773010232753,-250.0,0.00016497,2]
[408003576,1773010232764,-1680.0,0.00016499,2]
[408003577,1773010232773,-300.0,0.00017,2]
[408003578,1773010232783,-503.0,0.00017,2]
[408003579,1773010232794,-203.96,0.0001734,2]
[408003580,1773010232803,-1555.62,0.00017386,2]
[408003581,1773010232813,-9999.99,0.00017728,2]
[408003582,1773010232823,-150.99,0.00017728,2]
[408003583,1773010232832,-221.47337308,0.00017821,2]
[408003584,1773010232841,-155.5,0.00017902,2]
[408003585,1773010232852,-6952.98,0.00017902,2]
[408003586,1773010232861,-656.85658874,0.0001792,2]
[408003587,1773010232871,-587.0,0.00017966,2]
[408003588,1773010232881,-150.0,0.00018082,2]
[408003589,1773010232890,-1400.0,0.00018082,7]
[408003590,1773010232900,-1500.0,0.00018092,2]
[408003591,1773010232910,-2351.0,0.00018149,2]
[408003592,1773010232920,-500.0,0.00018356,7]
[408003593,1773010232930,-1300.0,0.00018356,7]
[408003594,1773010232944,-2804.0,0.000184,2]
[408003595,1773010232953,-866.0,0.00018403,2]
[408003596,1773010232963,-2000.0,0.0001844,2]
[408003597,1773010232973,-503.0,0.00018465,3]
[408003598,1773010232983,-866.0,0.00018508,2]
[408003599,1773010232992,-2155.0578,0.00018678,2]
[408003600,1773010233002,-2848.5769,0.00018678,2]
[408003601,1773010233012,-1968.14477177,0.00018716,2]
[408003602,1773010233022,-2805.0,0.0001872,2]
[408003603,1773010233031,-866.0,0.00018752,2]
[408003604,1773010233041,-20682.44314365,0.00018778,2]